[Event "Titled Tuesday Blitz May 23 Early 2023"]
[White "MKlose11"]
[Black "Gareyev, Timur"]
[BlackFideId "14200937"]
[WhiteElo "2681"]
[BlackElo "2563"]
[Result "1/2-1/2"]
[Round "04"]
[TimeControl "180+2"]
[Date "2023.05.23"]
[WhiteClock "0:00:16"]
[BlackClock "0:00:12"]

1. e4 {[%clk 0:02:56]}  e5 {[%clk 0:02:51]} 2. Nf3 {[%clk 0:02:56]}  Nc6 {[%clk 0:02:51]} 3. d4 {[%clk 0:02:56]}  exd4 {[%clk 0:02:51]} 4. Bc4 {[%clk 0:02:57]}  Nf6 {[%clk 0:02:50]} 5. O-O {[%clk 0:02:56]}  Na5 {[%clk 0:02:42]} 6. Bd3 {[%clk 0:02:16]}  d5 {[%clk 0:02:34]} 7. e5 {[%clk 0:02:10]}  Ne4 {[%clk 0:02:30]} 8. Nxd4 {[%clk 0:02:08]}  c5 {[%clk 0:02:18]} 9. Nb5 {[%clk 0:02:00]}  Bd7 {[%clk 0:02:15]} 10. Re1 {[%clk 0:01:44]}  Qb6 {[%clk 0:01:42]} 11. Bxe4 {[%clk 0:01:38]}  dxe4 {[%clk 0:01:40]} 12. Nd6+ {[%clk 0:01:21]}  Bxd6 {[%clk 0:01:40]} 13. Qxd6 {[%clk 0:01:19]}  Qxd6 {[%clk 0:01:38]} 14. exd6 {[%clk 0:01:20]}  O-O-O {[%clk 0:01:34]} 15. Rxe4 {[%clk 0:01:10]}  Bc6 {[%clk 0:01:25]} 16. Re7 {[%clk 0:01:02]}  Rxd6 {[%clk 0:01:22]} 17. Nc3 {[%clk 0:01:02]}  Rd7 {[%clk 0:01:10]} 18. Rxd7 {[%clk 0:00:59]}  Kxd7 {[%clk 0:01:11]} 19. b3 {[%clk 0:00:53]}  b6 {[%clk 0:01:10]} 20. Bf4 {[%clk 0:00:52]}  f6 {[%clk 0:01:08]} 21. Rd1+ {[%clk 0:00:51]}  Ke6 {[%clk 0:01:08]} 22. Re1+ {[%clk 0:00:50]}  Kf7 {[%clk 0:01:07]} 23. Bd6 {[%clk 0:00:40]}  Rd8 {[%clk 0:01:03]} 24. Re7+ {[%clk 0:00:27]}  Kg6 {[%clk 0:01:03]} 25. Bf4 {[%clk 0:00:27]}  Rd7 {[%clk 0:01:02]} 26. Rxd7 {[%clk 0:00:24]}  Bxd7 {[%clk 0:01:03]} 27. Nd5 {[%clk 0:00:18]}  Kf7 {[%clk 0:01:03]} 28. Kf1 {[%clk 0:00:18]}  Bf5 {[%clk 0:01:03]} 29. Ne3 {[%clk 0:00:18]}  Bg6 {[%clk 0:01:00]} 30. Ke2 {[%clk 0:00:17]}  Nc6 {[%clk 0:00:59]} 31. c3 {[%clk 0:00:15]}  Bb1 {[%clk 0:00:59]} 32. a3 {[%clk 0:00:16]}  g5 {[%clk 0:00:58]} 33. Bc7 {[%clk 0:00:15]}  Ke6 {[%clk 0:00:58]} 34. b4 {[%clk 0:00:16]}  h5 {[%clk 0:00:52]} 35. g3 {[%clk 0:00:13]}  f5 {[%clk 0:00:50]} 36. h4 {[%clk 0:00:11]}  g4 {[%clk 0:00:49]} 37. Ng2 {[%clk 0:00:10]}  Kd5 {[%clk 0:00:49]} 38. bxc5 {[%clk 0:00:09]}  bxc5 {[%clk 0:00:47]} 39. Nf4+ {[%clk 0:00:09]}  Kc4 {[%clk 0:00:47]} 40. Kd2 {[%clk 0:00:10]}  Kb3 {[%clk 0:00:47]} 41. Bd6 {[%clk 0:00:10]}  Kxa3 {[%clk 0:00:33]} 42. Bxc5+ {[%clk 0:00:10]}  Kb3 {[%clk 0:00:33]} 43. Nxh5 {[%clk 0:00:11]}  a5 {[%clk 0:00:22]} 44. Nf4 {[%clk 0:00:11]}  a4 {[%clk 0:00:21]} 45. h5 {[%clk 0:00:11]}  Ne5 {[%clk 0:00:15]} 46. h6 {[%clk 0:00:08]}  Nf7 {[%clk 0:00:16]} 47. h7 {[%clk 0:00:08]}  a3 {[%clk 0:00:15]} 48. Bxa3 {[%clk 0:00:08]}  Kxa3 {[%clk 0:00:16]} 49. Ke3 {[%clk 0:00:08]}  Kb3 {[%clk 0:00:15]} 50. Kd4 {[%clk 0:00:09]}  Kc2 {[%clk 0:00:15]} 51. Ng6 {[%clk 0:00:09]}  Kd2 {[%clk 0:00:13]} 52. h8=Q {[%clk 0:00:07]}  Nxh8 {[%clk 0:00:13]} 53. Nxh8 {[%clk 0:00:08]}  Ke2 {[%clk 0:00:13]} 54. Ke5 {[%clk 0:00:08]}  Kxf2 {[%clk 0:00:13]} 55. Kf4 {[%clk 0:00:09]}  Ke2 {[%clk 0:00:13]} 56. c4 {[%clk 0:00:09]}  Be4 {[%clk 0:00:12]} 57. c5 {[%clk 0:00:10]}  Kd3 {[%clk 0:00:12]} 58. Nf7 {[%clk 0:00:10]}  Bd5 {[%clk 0:00:10]} 59. Nd6 {[%clk 0:00:09]}  Kd4 {[%clk 0:00:10]} 60. Nxf5+ {[%clk 0:00:06]}  Kxc5 {[%clk 0:00:11]} 61. Kxg4 {[%clk 0:00:02]}  Bb3 {[%clk 0:00:09]} 62. Kg5 {[%clk 0:00:02]}  Bd1 {[%clk 0:00:09]} 63. Kf6 {[%clk 0:00:03]}  Kc6 {[%clk 0:00:08]} 64. Ke5 {[%clk 0:00:03]}  Kd7 {[%clk 0:00:07]} 65. Kf6 {[%clk 0:00:03]}  Ke8 {[%clk 0:00:07]} 66. Ng7+ {[%clk 0:00:03]}  Kd7 {[%clk 0:00:07]} 67. Ne6 {[%clk 0:00:04]}  Kd6 {[%clk 0:00:07]} 68. Nf4 {[%clk 0:00:04]}  Kd7 {[%clk 0:00:07]} 69. Ng2 {[%clk 0:00:04]}  Bf3 {[%clk 0:00:07]} 70. Ne3 {[%clk 0:00:05]}  Be2 {[%clk 0:00:07]} 71. Ke5 {[%clk 0:00:04]}  Ke8 {[%clk 0:00:07]} 72. Kf4 {[%clk 0:00:05]}  Kf8 {[%clk 0:00:07]} 73. Nf5 {[%clk 0:00:05]}  Kg8 {[%clk 0:00:07]} 74. Nd4 {[%clk 0:00:06]}  Bd1 {[%clk 0:00:07]} 75. Nf3 {[%clk 0:00:06]}  Be2 {[%clk 0:00:06]} 76. g4 {[%clk 0:00:06]}  Bd3 {[%clk 0:00:07]} 77. g5 {[%clk 0:00:06]}  Bb1 {[%clk 0:00:07]} 78. Ke5 {[%clk 0:00:06]}  Kg7 {[%clk 0:00:07]} 79. Kf4 {[%clk 0:00:06]}  Kg6 {[%clk 0:00:07]} 80. Nd4 {[%clk 0:00:07]}  Kg7 {[%clk 0:00:07]} 81. Nc6 {[%clk 0:00:07]}  Kg6 {[%clk 0:00:07]} 82. Ne5+ {[%clk 0:00:08]}  Kg7 {[%clk 0:00:08]} 83. Ke3 {[%clk 0:00:08]}  Bc2 {[%clk 0:00:07]} 84. Kd4 {[%clk 0:00:09]}  Bb1 {[%clk 0:00:08]} 85. Kc5 {[%clk 0:00:10]}  Bc2 {[%clk 0:00:08]} 86. Kd6 {[%clk 0:00:10]}  Bb1 {[%clk 0:00:08]} 87. Ke6 {[%clk 0:00:11]}  Bc2 {[%clk 0:00:09]} 88. Kd5 {[%clk 0:00:12]}  Bb3+ {[%clk 0:00:09]} 89. Kd4 {[%clk 0:00:13]}  Ba2 {[%clk 0:00:10]} 90. Ke3 {[%clk 0:00:14]}  Bb1 {[%clk 0:00:10]} 91. Kf4 {[%clk 0:00:15]}  Bc2 {[%clk 0:00:10]} 92. Kg4 {[%clk 0:00:15]}  Bb1 {[%clk 0:00:11]} 93. Nf3 {[%clk 0:00:15]}  Bc2 {[%clk 0:00:10]} 94. Nh4 {[%clk 0:00:15]}  Bd1+ {[%clk 0:00:10]} 95. Kf4 {[%clk 0:00:15]}  Bc2 {[%clk 0:00:11]} 96. Nf5+ {[%clk 0:00:15]}  Bxf5 {[%clk 0:00:11]} 97. Kxf5 {[%clk 0:00:15]}  Kf7 {[%clk 0:00:11]} 98. Kf4 {[%clk 0:00:15]}  Kg7 {[%clk 0:00:11]} 99. Kg4 {[%clk 0:00:16]}  Kg8 {[%clk 0:00:10]} 100. Kf4 {[%clk 0:00:12]}  Kg7 {[%clk 0:00:10]} 101. Kf5 {[%clk 0:00:13]}  Kf7 {[%clk 0:00:10]} 102. g6+ {[%clk 0:00:13]}  Kg8 {[%clk 0:00:10]} 103. Kg4 {[%clk 0:00:13]}  Kg7 {[%clk 0:00:10]} 104. Kg5 {[%clk 0:00:14]}  Kg8 {[%clk 0:00:11]} 105. Kf5 {[%clk 0:00:13]}  Kg7 {[%clk 0:00:11]} 106. Kg5 {[%clk 0:00:14]}  Kg8 {[%clk 0:00:12]} 107. Kf6 {[%clk 0:00:15]}  Kf8 {[%clk 0:00:12]} 108. g7+ {[%clk 0:00:15]}  Kg8 {[%clk 0:00:12]} 109. Kg6 {[%clk 0:00:16]} 1/2-1/2


[Site "https://www.chess.com"]

[Event "Titled Tuesday Blitz May 23 Early 2023"]
[White "Garv Gaur"]
[Black "Beerdsen, Thomas"]
[WhiteFideId "45030839"]
[BlackFideId "1030108"]
[WhiteElo "2068"]
[BlackElo "2549"]
[Result "0-1"]
[Round "04"]
[TimeControl "180+2"]
[Date "2023.05.23"]
[WhiteClock "0:00:03"]
[BlackClock "0:01:06"]

1. Nf3 {[%clk 0:02:57]}  Nf6 {[%clk 0:02:58]} 2. b3 {[%clk 0:02:57]}  a5 {[%clk 0:02:58]} 3. c4 {[%clk 0:02:55]}  a4 {[%clk 0:02:59]} 4. Bb2 {[%clk 0:02:52]}  e6 {[%clk 0:02:57]} 5. e3 {[%clk 0:02:51]}  b6 {[%clk 0:02:54]} 6. d4 {[%clk 0:02:50]}  Bb7 {[%clk 0:02:51]} 7. Bd3 {[%clk 0:02:50]}  Be7 {[%clk 0:02:44]} 8. O-O {[%clk 0:02:49]}  O-O {[%clk 0:02:45]} 9. bxa4 {[%clk 0:02:35]}  Nc6 {[%clk 0:02:42]} 10. Nc3 {[%clk 0:02:34]}  Ra5 {[%clk 0:02:40]} 11. a3 {[%clk 0:02:32]}  Rh5 {[%clk 0:02:35]} 12. h3 {[%clk 0:02:31]}  Qa8 {[%clk 0:02:35]} 13. Be2 {[%clk 0:02:29]}  Rh6 {[%clk 0:02:34]} 14. Nb5 {[%clk 0:02:23]}  Rc8 {[%clk 0:02:29]} 15. Qc2 {[%clk 0:02:10]}  Na5 {[%clk 0:02:25]} 16. Nc3 {[%clk 0:02:03]}  c5 {[%clk 0:02:21]} 17. Nb5 {[%clk 0:01:57]}  Be4 {[%clk 0:02:17]} 18. Qc3 {[%clk 0:01:56]}  Rxh3 {[%clk 0:02:15]} 19. gxh3 {[%clk 0:01:52]}  Bxf3 {[%clk 0:02:15]} 20. Bxf3 {[%clk 0:01:53]}  Qxf3 {[%clk 0:02:16]} 21. e4 {[%clk 0:01:53]}  Qxe4 {[%clk 0:02:09]} 22. d5 {[%clk 0:01:51]}  Nxc4 {[%clk 0:02:06]} 23. d6 {[%clk 0:01:17]}  Nxd6 {[%clk 0:01:59]} 24. Nxd6 {[%clk 0:01:07]}  Bxd6 {[%clk 0:02:00]} 25. Rad1 {[%clk 0:01:06]}  Bb8 {[%clk 0:01:52]} 26. Rfe1 {[%clk 0:00:52]}  Qf5 {[%clk 0:01:51]} 27. Rd3 {[%clk 0:00:45]}  d5 {[%clk 0:01:50]} 28. Rf3 {[%clk 0:00:43]}  Qg6+ {[%clk 0:01:50]} 29. Kf1 {[%clk 0:00:43]}  d4 {[%clk 0:01:49]} 30. Qc4 {[%clk 0:00:41]}  Qh5 {[%clk 0:01:32]} 31. Kg2 {[%clk 0:00:23]}  e5 {[%clk 0:01:29]} 32. Qa6 {[%clk 0:00:08]}  Re8 {[%clk 0:01:27]} 33. Qxb6 {[%clk 0:00:07]}  e4 {[%clk 0:01:24]} 34. Rxf6 {[%clk 0:00:05]}  Qg5+ {[%clk 0:01:24]} 35. Kf1 {[%clk 0:00:04]}  gxf6 {[%clk 0:01:18]} 36. a5 {[%clk 0:00:03]}  e3 {[%clk 0:01:14]} 37. a6 {[%clk 0:00:03]}  Qf5 {[%clk 0:01:06]} 38. Qc6 {[%clk 0:00:03]}  Qxf2# {[%clk 0:01:06]} 0-1


[Site "https://www.chess.com"]

[Event "Titled Tuesday Blitz May 23 Early 2023"]
[White "Cordova, Emilio"]
[Black "Javakhadze, Zurab"]
[WhiteFideId "3801497"]
[BlackFideId "13603647"]
[WhiteElo "2607"]
[BlackElo "2381"]
[Result "1-0"]
[Round "04"]
[TimeControl "180+2"]
[Date "2023.05.23"]
[WhiteClock "0:00:08"]
[BlackClock "0:00:00"]

1. d4 {[%clk 0:03:00]}  d5 {[%clk 0:02:59]} 2. Nf3 {[%clk 0:03:01]}  e6 {[%clk 0:02:57]} 3. c4 {[%clk 0:03:02]}  Nf6 {[%clk 0:02:58]} 4. Nc3 {[%clk 0:03:02]}  Nbd7 {[%clk 0:02:56]} 5. g3 {[%clk 0:03:03]}  c6 {[%clk 0:02:40]} 6. cxd5 {[%clk 0:03:02]}  exd5 {[%clk 0:02:39]} 7. Bg2 {[%clk 0:03:02]}  Bd6 {[%clk 0:02:37]} 8. O-O {[%clk 0:03:03]}  O-O {[%clk 0:02:36]} 9. Qc2 {[%clk 0:03:03]}  Re8 {[%clk 0:02:35]} 10. Bf4 {[%clk 0:03:00]}  Bxf4 {[%clk 0:02:27]} 11. gxf4 {[%clk 0:03:00]}  Nf8 {[%clk 0:02:28]} 12. e3 {[%clk 0:02:59]}  Ng6 {[%clk 0:02:26]} 13. Kh1 {[%clk 0:02:58]}  Ng4 {[%clk 0:02:06]} 14. h3 {[%clk 0:02:49]}  Nh6 {[%clk 0:01:48]} 15. Rg1 {[%clk 0:02:47]}  Nh4 {[%clk 0:01:40]} 16. Ng5 {[%clk 0:02:34]}  Bf5 {[%clk 0:01:32]} 17. Qe2 {[%clk 0:02:33]}  f6 {[%clk 0:01:20]} 18. Nf3 {[%clk 0:02:32]}  Nxg2 {[%clk 0:01:17]} 19. Rxg2 {[%clk 0:02:31]}  Re7 {[%clk 0:00:58]} 20. Rag1 {[%clk 0:02:26]}  Kh8 {[%clk 0:00:58]} 21. Nh4 {[%clk 0:02:18]}  Bxh3 {[%clk 0:00:53]} 22. Rh2 {[%clk 0:02:16]}  Qd7 {[%clk 0:00:51]} 23. Qh5 {[%clk 0:02:10]}  Bf5 {[%clk 0:00:12]} 24. Rg3 {[%clk 0:01:42]}  Rae8 {[%clk 0:00:11]} 25. Rhg2 {[%clk 0:01:39]}  Bh3 {[%clk 0:00:08]} 26. Rh2 {[%clk 0:01:31]}  Bf5 {[%clk 0:00:08]} 27. Rhg2 {[%clk 0:01:30]}  Bh3 {[%clk 0:00:08]} 28. Rg1 {[%clk 0:01:31]}  Bf5 {[%clk 0:00:04]} 29. f3 {[%clk 0:01:02]}  Bd3 {[%clk 0:00:03]} 30. Nd1 {[%clk 0:00:55]}  Bc2 {[%clk 0:00:02]} 31. Nf2 {[%clk 0:00:55]}  Rxe3 {[%clk 0:00:02]} 32. Rxg7 {[%clk 0:00:42]}  Qxg7 {[%clk 0:00:03]} 33. Rxg7 {[%clk 0:00:42]}  Kxg7 {[%clk 0:00:04]} 34. f5 {[%clk 0:00:26]}  Re1+ {[%clk 0:00:03]} 35. Kg2 {[%clk 0:00:26]}  R8e2 {[%clk 0:00:04]} 36. Kg3 {[%clk 0:00:11]}  Rg1+ {[%clk 0:00:04]} 37. Ng2 {[%clk 0:00:11]}  Nxf5+ {[%clk 0:00:02]} 38. Kh2 {[%clk 0:00:11]}  Rf1 {[%clk 0:00:01]} 39. Qg4+ {[%clk 0:00:07]}  Kf7 {[%clk 0:00:00]} 40. Nh3 {[%clk 0:00:08]} 1-0


[Site "https://www.chess.com"]

[Event "Titled Tuesday Blitz May 23 Early 2023"]
[White "Starozhilov, Leonid"]
[Black "Kramnik, Vladimir"]
[WhiteFideId "14106752"]
[BlackFideId "4101588"]
[WhiteElo "2352"]
[BlackElo "2703"]
[Result "0-1"]
[Round "04"]
[TimeControl "180+2"]
[Date "2023.05.23"]
[WhiteClock "0:00:13"]
[BlackClock "0:00:45"]

1. e4 {[%clk 0:03:00]}  c5 {[%clk 0:02:59]} 2. Nf3 {[%clk 0:03:00]}  e6 {[%clk 0:02:59]} 3. c4 {[%clk 0:02:59]}  Nc6 {[%clk 0:02:57]} 4. d4 {[%clk 0:03:00]}  cxd4 {[%clk 0:02:56]} 5. Nxd4 {[%clk 0:03:00]}  Nf6 {[%clk 0:02:56]} 6. Nc3 {[%clk 0:03:01]}  Bb4 {[%clk 0:02:55]} 7. Nxc6 {[%clk 0:03:01]}  bxc6 {[%clk 0:02:55]} 8. Bd3 {[%clk 0:03:02]}  e5 {[%clk 0:02:55]} 9. O-O {[%clk 0:03:01]}  O-O {[%clk 0:02:55]} 10. Qc2 {[%clk 0:03:01]}  Bc5 {[%clk 0:02:52]} 11. a3 {[%clk 0:02:54]}  d6 {[%clk 0:02:49]} 12. Rb1 {[%clk 0:02:53]}  a5 {[%clk 0:02:39]} 13. b4 {[%clk 0:02:50]}  axb4 {[%clk 0:02:38]} 14. axb4 {[%clk 0:02:51]}  Bd4 {[%clk 0:02:38]} 15. Ne2 {[%clk 0:02:51]}  Bb6 {[%clk 0:02:26]} 16. h3 {[%clk 0:02:41]}  Qe7 {[%clk 0:02:23]} 17. Ng3 {[%clk 0:02:32]}  h6 {[%clk 0:02:18]} 18. Bb2 {[%clk 0:02:17]}  Nh7 {[%clk 0:02:04]} 19. Rfc1 {[%clk 0:02:12]}  Ng5 {[%clk 0:01:59]} 20. c5 {[%clk 0:02:10]}  dxc5 {[%clk 0:01:59]} 21. bxc5 {[%clk 0:02:11]}  Bc7 {[%clk 0:01:58]} 22. Bf1 {[%clk 0:02:05]}  g6 {[%clk 0:01:56]} 23. Qd2 {[%clk 0:01:40]}  h5 {[%clk 0:01:50]} 24. Qe3 {[%clk 0:01:30]}  Kh7 {[%clk 0:01:49]} 25. Ra1 {[%clk 0:01:23]}  Bd7 {[%clk 0:01:43]} 26. Bc4 {[%clk 0:01:18]}  Ne6 {[%clk 0:01:30]} 27. Bxe6 {[%clk 0:01:09]}  Bxe6 {[%clk 0:01:30]} 28. Nf1 {[%clk 0:01:03]}  Rfb8 {[%clk 0:01:25]} 29. Rxa8 {[%clk 0:01:03]}  Rxa8 {[%clk 0:01:24]} 30. Nd2 {[%clk 0:01:03]}  Ra4 {[%clk 0:01:15]} 31. Nf3 {[%clk 0:00:59]}  f6 {[%clk 0:01:11]} 32. Ra1 {[%clk 0:00:50]}  Rxa1+ {[%clk 0:01:07]} 33. Bxa1 {[%clk 0:00:51]}  Qd7 {[%clk 0:01:06]} 34. Bc3 {[%clk 0:00:44]}  Qd1+ {[%clk 0:01:02]} 35. Kh2 {[%clk 0:00:44]}  Qc2 {[%clk 0:00:53]} 36. Nd2 {[%clk 0:00:25]}  Bd8 {[%clk 0:00:47]} 37. f4 {[%clk 0:00:20]}  exf4 {[%clk 0:00:46]} 38. Qxf4 {[%clk 0:00:21]}  Qxc3 {[%clk 0:00:45]} 39. Nf3 {[%clk 0:00:13]}  Qxc5 {[%clk 0:00:45]} 0-1


[Site "https://www.chess.com"]

[Event "Titled Tuesday Blitz May 23 Early 2023"]
[White "demon64fields"]
[Black "Maltsevskaya, Aleksandra"]
[BlackFideId "24174041"]
[WhiteElo "2875"]
[BlackElo "2302"]
[Result "1-0"]
[Round "04"]
[TimeControl "180+2"]
[Date "2023.05.23"]
[WhiteClock "0:01:14"]
[BlackClock "0:01:45"]

1. Nf3 {[%clk 0:03:00]}  d6 {[%clk 0:02:41]} 2. d4 {[%clk 0:03:00]}  Nd7 {[%clk 0:02:41]} 3. Nc3 {[%clk 0:03:00]}  Ngf6 {[%clk 0:02:42]} 4. e4 {[%clk 0:03:01]}  e5 {[%clk 0:02:43]} 5. Be3 {[%clk 0:03:01]}  Be7 {[%clk 0:02:42]} 6. h3 {[%clk 0:03:01]}  O-O {[%clk 0:02:43]} 7. g4 {[%clk 0:03:01]}  exd4 {[%clk 0:02:42]} 8. Nxd4 {[%clk 0:03:01]}  Ne5 {[%clk 0:02:42]} 9. f4 {[%clk 0:02:57]}  c5 {[%clk 0:02:40]} 10. fxe5 {[%clk 0:02:53]}  cxd4 {[%clk 0:02:40]} 11. exf6 {[%clk 0:02:53]}  dxc3 {[%clk 0:02:36]} 12. fxe7 {[%clk 0:02:51]}  Qxe7 {[%clk 0:02:37]} 13. Bd3 {[%clk 0:02:50]}  cxb2 {[%clk 0:02:36]} 14. Rb1 {[%clk 0:02:50]}  Qe5 {[%clk 0:02:36]} 15. Qf3 {[%clk 0:02:46]}  d5 {[%clk 0:02:36]} 16. Bf4 {[%clk 0:02:36]}  Qc3+ {[%clk 0:02:27]} 17. Bd2 {[%clk 0:01:19]}  Qc5 {[%clk 0:02:24]} 18. Qe3 {[%clk 0:01:18]}  Qa3 {[%clk 0:01:54]} 19. O-O {[%clk 0:01:15]}  dxe4 {[%clk 0:01:45]} 20. Qxe4 {[%clk 0:01:14]} 1-0


[Site "https://www.chess.com"]

[Event "Titled Tuesday Blitz May 23 Early 2023"]
[White "Weishaeutel, Moritz"]
[Black "Sychev, Klementy"]
[WhiteFideId "12967300"]
[BlackFideId "4114060"]
[WhiteElo "2301"]
[BlackElo "2583"]
[Result "1/2-1/2"]
[Round "04"]
[TimeControl "180+2"]
[Date "2023.05.23"]
[WhiteClock "0:00:03"]
[BlackClock "0:00:04"]

1. e4 {[%clk 0:03:00]}  e5 {[%clk 0:03:00]} 2. Nf3 {[%clk 0:03:01]}  Nc6 {[%clk 0:03:00]} 3. c3 {[%clk 0:03:01]}  Nf6 {[%clk 0:02:57]} 4. d4 {[%clk 0:03:01]}  exd4 {[%clk 0:02:56]} 5. e5 {[%clk 0:03:02]}  Nd5 {[%clk 0:02:55]} 6. cxd4 {[%clk 0:02:57]}  Bb4+ {[%clk 0:02:55]} 7. Bd2 {[%clk 0:02:55]}  Bxd2+ {[%clk 0:02:55]} 8. Nbxd2 {[%clk 0:02:55]}  d6 {[%clk 0:02:48]} 9. Bc4 {[%clk 0:02:54]}  Nf4 {[%clk 0:02:37]} 10. O-O {[%clk 0:02:44]}  O-O {[%clk 0:02:37]} 11. Re1 {[%clk 0:02:31]}  Bf5 {[%clk 0:02:13]} 12. Ne4 {[%clk 0:02:07]}  Nxg2 {[%clk 0:01:26]} 13. Kxg2 {[%clk 0:02:02]}  Bxe4 {[%clk 0:01:26]} 14. Rxe4 {[%clk 0:01:50]}  d5 {[%clk 0:01:26]} 15. Rg4 {[%clk 0:01:50]}  dxc4 {[%clk 0:01:25]} 16. Qc1 {[%clk 0:01:44]}  Kh8 {[%clk 0:01:01]} 17. Qxc4 {[%clk 0:01:40]}  Ne7 {[%clk 0:01:01]} 18. Rg1 {[%clk 0:01:38]}  Qd7 {[%clk 0:00:39]} 19. Kh1 {[%clk 0:01:28]}  Qf5 {[%clk 0:00:37]} 20. Qe2 {[%clk 0:01:09]}  Ng6 {[%clk 0:00:29]} 21. Ng5 {[%clk 0:01:06]}  c5 {[%clk 0:00:25]} 22. dxc5 {[%clk 0:00:41]}  Nxe5 {[%clk 0:00:21]} 23. Re4 {[%clk 0:00:39]}  f6 {[%clk 0:00:18]} 24. f4 {[%clk 0:00:29]}  fxg5 {[%clk 0:00:13]} 25. fxe5 {[%clk 0:00:28]}  Rae8 {[%clk 0:00:11]} 26. b4 {[%clk 0:00:26]}  Re6 {[%clk 0:00:10]} 27. Re1 {[%clk 0:00:15]}  Rfe8 {[%clk 0:00:10]} 28. Rf1 {[%clk 0:00:14]}  Qg6 {[%clk 0:00:09]} 29. Re3 {[%clk 0:00:13]}  g4 {[%clk 0:00:09]} 30. Qf2 {[%clk 0:00:12]}  h5 {[%clk 0:00:08]} 31. Qf5 {[%clk 0:00:11]}  Kh7 {[%clk 0:00:07]} 32. Kg2 {[%clk 0:00:08]}  Qxf5 {[%clk 0:00:06]} 33. Rxf5 {[%clk 0:00:09]}  Kg6 {[%clk 0:00:07]} 34. Rf2 {[%clk 0:00:05]}  Rxe5 {[%clk 0:00:07]} 35. Rxe5 {[%clk 0:00:05]}  Rxe5 {[%clk 0:00:07]} 36. Rd2 {[%clk 0:00:06]}  Re3 {[%clk 0:00:04]} 37. Rd7 {[%clk 0:00:06]}  Ra3 {[%clk 0:00:04]} 38. Rxb7 {[%clk 0:00:06]}  Rxa2+ {[%clk 0:00:03]} 39. Kg3 {[%clk 0:00:07]}  Ra3+ {[%clk 0:00:03]} 40. Kf4 {[%clk 0:00:07]}  Rc3 {[%clk 0:00:02]} 41. Rxa7 {[%clk 0:00:07]}  Rc4+ {[%clk 0:00:03]} 42. Ke5 {[%clk 0:00:07]}  Rxb4 {[%clk 0:00:03]} 43. c6 {[%clk 0:00:08]}  Rc4 {[%clk 0:00:03]} 44. Kd5 {[%clk 0:00:09]}  Rc2 {[%clk 0:00:03]} 45. Ra5 {[%clk 0:00:08]}  h4 {[%clk 0:00:02]} 46. Rc5 {[%clk 0:00:08]}  Rd2+ {[%clk 0:00:01]} 47. Ke6 {[%clk 0:00:07]}  Re2+ {[%clk 0:00:02]} 48. Kd7 {[%clk 0:00:07]}  Rd2+ {[%clk 0:00:02]} 49. Ke7 {[%clk 0:00:06]}  Re2+ {[%clk 0:00:02]} 50. Kf8 {[%clk 0:00:06]}  Rf2+ {[%clk 0:00:02]} 51. Kg8 {[%clk 0:00:04]}  Re2 {[%clk 0:00:03]} 52. Kf8 {[%clk 0:00:04]}  Rf2+ {[%clk 0:00:03]} 53. Ke8 {[%clk 0:00:05]}  Re2+ {[%clk 0:00:04]} 54. Kd8 {[%clk 0:00:05]}  Rd2+ {[%clk 0:00:04]} 55. Ke7 {[%clk 0:00:06]}  Re2+ {[%clk 0:00:04]} 56. Kd7 {[%clk 0:00:05]}  Rd2+ {[%clk 0:00:04]} 57. Ke6 {[%clk 0:00:05]}  Re2+ {[%clk 0:00:04]} 58. Kd6 {[%clk 0:00:02]}  Rd2+ {[%clk 0:00:04]} 59. Ke7 {[%clk 0:00:03]} 1/2-1/2


[Site "https://www.chess.com"]

[Event "Titled Tuesday Blitz May 23 Early 2023"]
[White "Molina, Roberto Junio Brito"]
[Black "Korchmar, Vasiliy"]
[WhiteFideId "2109450"]
[BlackFideId "24131750"]
[WhiteElo "2376"]
[BlackElo "2370"]
[Result "1-0"]
[Round "04"]
[TimeControl "180+2"]
[Date "2023.05.23"]
[WhiteClock "0:00:17"]
[BlackClock "0:00:01"]

1. d4 {[%clk 0:02:59]}  Nf6 {[%clk 0:02:57]} 2. c4 {[%clk 0:02:55]}  c6 {[%clk 0:02:57]} 3. Nc3 {[%clk 0:02:51]}  d5 {[%clk 0:02:57]} 4. Nf3 {[%clk 0:02:52]}  e6 {[%clk 0:02:57]} 5. Bg5 {[%clk 0:02:51]}  Nbd7 {[%clk 0:02:57]} 6. e3 {[%clk 0:02:51]}  Be7 {[%clk 0:02:57]} 7. Bd3 {[%clk 0:02:50]}  O-O {[%clk 0:02:51]} 8. O-O {[%clk 0:02:49]}  h6 {[%clk 0:02:50]} 9. Bh4 {[%clk 0:02:47]}  dxc4 {[%clk 0:02:49]} 10. Bxc4 {[%clk 0:02:47]}  b5 {[%clk 0:02:49]} 11. Be2 {[%clk 0:02:44]}  Bb7 {[%clk 0:02:47]} 12. a4 {[%clk 0:02:42]}  b4 {[%clk 0:02:46]} 13. Na2 {[%clk 0:02:39]}  c5 {[%clk 0:02:46]} 14. dxc5 {[%clk 0:02:37]}  Nxc5 {[%clk 0:02:45]} 15. Nxb4 {[%clk 0:02:29]}  Qb6 {[%clk 0:02:33]} 16. Nd3 {[%clk 0:02:29]}  Rfd8 {[%clk 0:02:28]} 17. a5 {[%clk 0:02:22]}  Qb3 {[%clk 0:02:12]} 18. Nxc5 {[%clk 0:02:18]}  Qxd1 {[%clk 0:02:02]} 19. Rfxd1 {[%clk 0:02:14]}  Bxc5 {[%clk 0:02:02]} 20. Bg3 {[%clk 0:01:47]}  Bd5 {[%clk 0:01:51]} 21. Rdc1 {[%clk 0:01:41]}  Ne4 {[%clk 0:01:42]} 22. Be5 {[%clk 0:01:31]}  f6 {[%clk 0:01:42]} 23. Bd4 {[%clk 0:01:31]}  Bxd4 {[%clk 0:01:31]} 24. Nxd4 {[%clk 0:01:32]}  Rab8 {[%clk 0:01:32]} 25. Bc4 {[%clk 0:00:55]}  Bxc4 {[%clk 0:01:14]} 26. Rxc4 {[%clk 0:00:56]}  Rxb2 {[%clk 0:01:08]} 27. Nxe6 {[%clk 0:00:53]}  Rdb8 {[%clk 0:00:53]} 28. Rac1 {[%clk 0:00:45]}  Nxf2 {[%clk 0:00:49]} 29. Rc8+ {[%clk 0:00:43]}  Rxc8 {[%clk 0:00:48]} 30. Rxc8+ {[%clk 0:00:44]}  Kf7 {[%clk 0:00:48]} 31. Nf4 {[%clk 0:00:39]}  Ng4 {[%clk 0:00:46]} 32. g3 {[%clk 0:00:30]}  Rb1+ {[%clk 0:00:36]} 33. Kg2 {[%clk 0:00:30]}  Nxe3+ {[%clk 0:00:31]} 34. Kf3 {[%clk 0:00:30]}  Nf5 {[%clk 0:00:31]} 35. Rc7+ {[%clk 0:00:30]}  Kg8 {[%clk 0:00:31]} 36. Rxa7 {[%clk 0:00:29]}  Ra1 {[%clk 0:00:17]} 37. Ne6 {[%clk 0:00:27]}  h5 {[%clk 0:00:14]} 38. Ke4 {[%clk 0:00:25]}  Nd6+ {[%clk 0:00:10]} 39. Kd5 {[%clk 0:00:25]}  Nf5 {[%clk 0:00:08]} 40. a6 {[%clk 0:00:24]}  Kh7 {[%clk 0:00:05]} 41. Ra8 {[%clk 0:00:22]}  Kg6 {[%clk 0:00:04]} 42. a7 {[%clk 0:00:21]}  Ra5+ {[%clk 0:00:03]} 43. Kc6 {[%clk 0:00:19]}  Ra1 {[%clk 0:00:03]} 44. Kb6 {[%clk 0:00:18]}  Rb1+ {[%clk 0:00:04]} 45. Kc7 {[%clk 0:00:17]}  Rc1+ {[%clk 0:00:03]} 46. Kb7 {[%clk 0:00:18]}  Rb1+ {[%clk 0:00:04]} 47. Kc6 {[%clk 0:00:18]}  Rc1+ {[%clk 0:00:04]} 48. Nc5 {[%clk 0:00:18]}  Ra1 {[%clk 0:00:03]} 49. Kb6 {[%clk 0:00:17]}  Rb1+ {[%clk 0:00:03]} 50. Kc7 {[%clk 0:00:17]}  Ra1 {[%clk 0:00:04]} 51. Kb7 {[%clk 0:00:17]}  Rb1+ {[%clk 0:00:04]} 52. Ka6 {[%clk 0:00:17]}  Ra1+ {[%clk 0:00:04]} 53. Kb6 {[%clk 0:00:18]}  Rb1+ {[%clk 0:00:04]} 54. Ka5 {[%clk 0:00:19]}  Nd6 {[%clk 0:00:03]} 55. Rd8 {[%clk 0:00:17]}  Ra1+ {[%clk 0:00:03]} 56. Kb6 {[%clk 0:00:17]}  Rb1+ {[%clk 0:00:02]} 57. Kc6 {[%clk 0:00:17]}  Ra1 {[%clk 0:00:03]} 58. a8=Q {[%clk 0:00:16]}  Rxa8 {[%clk 0:00:01]} 59. Rxa8 {[%clk 0:00:17]} 1-0


[Site "https://www.chess.com"]